bitfinex/quotes_ETHUSD_20240630
["timestamp","ask_amount","ask_price","bid_price","bid_amount"]
[1719761400970,0.43157493,3400.8,3400.4,0.17081803]
[1719761402000,0.43159006,3400.8,3400.4,0.17081803]
[1719761402493,0.849,3400.9,3400.4,0.17081803]
[1719761402637,0.43159819,3400.8,3400.4,0.17081803]
[1719761403561,0.43159819,3401.0,3400.4,0.17081803]
[1719761405076,3.0,3401.1,3400.4,0.17081803]
[1719761405282,1.28046578,3401.0,3400.4,0.17081803]
[1719761405582,0.43146578,3400.9,3400.4,0.17081803]
[1719761406301,0.43146578,3401.0,3400.4,0.17081803]
[1719761406455,0.43146578,3401.0,3400.5,2.2834]
[1719761406942,4.87493804,3401.2,3400.5,2.2834]
[1719761406943,0.43146578,3401.1,3400.5,2.2834]
[1719761408279,3.26755848,3401.2,3400.5,2.2834]
[1719761408470,0.43138921,3401.1,3400.5,2.2834]
[1719761409883,3.849,3401.2,3400.5,2.2834]
[1719761410065,0.43138037,3401.1,3400.5,2.2834]
[1719761411687,0.43136656,3401.1,3400.5,2.2834]
[1719761411889,3.849,3401.2,3400.5,2.2834]
[1719761412041,0.43136653,3401.1,3400.5,2.2834]
[1719761414882,0.43138166,3401.1,3400.5,2.2834]
[1719761418108,0.849,3401.0,3400.5,2.2834]
[1719761418255,0.43138166,3400.9,3400.5,2.2834]
[1719761419495,0.43138166,3400.9,3399.1,2.4049]
[1719761419496,0.849,3400.8,3399.1,2.4049]
[1719761419799,0.849,3400.6,3399.7,2.4049]
[1719761419992,0.43138166,3400.5,3399.9,2.4049]
[1719761420170,0.43138166,3400.5,3400.0,0.36018909]
[1719761420479,0.43138166,3400.5,3400.0,0.53076132]
[1719761421193,0.849,3400.6,3400.0,0.53076132]
[1719761421352,0.43165231,3400.5,3400.0,0.53076132]
[1719761421551,0.43165231,3400.5,3400.1,0.37846613]
[1719761421854,0.43165231,3400.5,3400.2,0.17056902]
[1719761422364,0.43165231,3400.7,3400.2,0.17056902]
[1719761423592,0.43165231,3400.7,3399.9,2.4049]
[1719761423805,0.43165231,3400.7,3400.3,0.17059894]
[1719761424011,0.849,3400.8,3399.9,2.4049]
[1719761424302,0.849,3400.8,3400.0,0.32539]
[1719761424455,0.43169194,3400.7,3400.0,0.49599375]
[1719761427405,0.849,3400.8,3400.0,0.49599375]
[1719761427582,0.43169066,3400.7,3400.0,0.49599375]
[1719761430599,0.849,3400.8,3400.0,0.49599375]
[1719761430901,0.43170657,3400.7,3400.0,0.49599375]
[1719761431060,0.849,3400.8,3400.1,0.37498938]
[1719761431266,0.43169656,3400.7,3400.2,0.17069336]
[1719761431496,0.849,3400.6,3399.9,2.4049]
[1719761431697,0.43169656,3400.5,3400.3,0.17069175]
[1719761431901,0.43169656,3400.5,3399.9,2.4049]
[1719761432097,0.43169656,3400.5,3400.4,0.17069015]
[1719761432305,0.43169656,3400.5,3399.9,2.4049]
[1719761432702,0.43169656,3400.5,3400.0,0.17069657]
[1719761433608,0.4317315,3400.5,3400.0,0.17069657]
[1719761433807,0.849,3400.6,3400.0,0.17069657]
[1719761433996,0.4317315,3400.5,3400.0,0.17069657]
[1719761434867,0.849,3400.7,3400.0,0.17069657]
[1719761435182,0.4317315,3400.6,3400.0,0.17069657]
[1719761437115,0.849,3400.7,3400.0,0.17069657]
[1719761437270,0.43172709,3400.6,3400.0,0.17069657]
[1719761439077,0.849,3400.5,3400.0,0.17069657]
[1719761439275,0.43172709,3400.4,3400.0,0.17069657]
[1719761440412,0.849,3400.5,3400.0,0.17069657]
[1719761440627,0.43173568,3400.4,3400.0,0.17069657]
[1719761440776,3.1067,3400.7,3400.0,0.17069657]
[1719761440979,0.43173267,3400.6,3400.0,0.17069657]
[1719761442113,3.1067,3400.7,3400.0,0.17069657]
[1719761442416,3.849,3400.9,3400.1,2.3298]
[1719761442790,3.849,3400.9,3400.2,0.17066294]
[1719761445781,3.0,3400.9,3400.3,2.3861]
[1719761446116,3.0,3400.8,3400.4,0.17065973]
[1719761446321,0.43160274,3400.6,3400.4,0.17065973]
[1719761447725,0.43160274,3400.6,3400.3,2.3861]
[1719761448727,0.849,3401.0,3400.3,2.3861]
[1719761450522,3.0,3401.1,3400.3,3.2351]
[1719761450736,3.0,3401.1,3400.4,2.3861]
[1719761450896,3.0,3401.1,3400.4,2.5567422]
[1719761454148,0.849,3401.3,3400.4,2.5567422]
[1719761454509,0.849,3401.3,3400.4,2.3861]
[1719761457045,4.11654869,3401.4,3400.6,2.4005]
[1719761457219,3.849,3401.4,3400.6,2.4005]
[1719761460834,3.0,3401.4,3400.6,2.4005]
[1719761461035,7.33,3401.5,3400.8,2.4005]
[1719761461447,7.33,3401.9,3401.0,2.4005]
[1719761461623,7.33,3401.9,3401.0,0.90780255]
[1719761461828,7.33,3401.9,3401.1,2.4005]
[1719761462049,0.849,3402.0,3401.1,2.45929772]
[1719761462455,0.849,3402.0,3401.3,2.4005]
[1719761462923,7.33,3402.3,3401.4,0.17037049]
[1719761462924,3.0,3402.2,3401.4,0.17037049]
[1719761463127,0.849,3402.0,3401.4,0.17037049]
[1719761463327,0.849,3402.0,3401.3,2.4005]
[1719761463547,0.3849,3401.9,3401.5,0.17036889]
[1719761463750,3.0,3402.2,3401.3,2.4005]
[1719761463751,3.849,3402.2,3401.3,2.4005]
[1719761464030,3.849,3402.2,3401.6,0.17033227]
[1719761464254,3.849,3402.2,3401.3,2.4005]
[1719761466429,3.0,3402.2,3401.4,0.849]
[1719761466629,3.0,3402.2,3401.5,2.4626]
[1719761468129,0.849,3401.9,3401.5,2.4626]
[1719761468829,0.849,3401.9,3401.0,2.4626]
[1719761469241,0.849,3401.9,3401.1,0.17028602]
[1719761476069,0.849,3401.9,3401.1,1.01928602]
[1719761477542,0.849,3401.9,3401.1,0.17028602]
[1719761477752,1.4768,3401.9,3401.1,0.17028602]
[1719761478571,0.6278,3401.9,3401.2,2.2969]
[1719761478753,1.4768,3401.9,3401.2,2.2969]
[1719761478965,1.4768,3401.9,3401.3,0.17019824]
[1719761479283,0.14768,3401.8,3401.3,0.17019824]
[1719761483057,0.5787998,3401.8,3401.3,0.17019824]
[1719761485152,0.43109137,3401.7,3401.3,0.17019824]
[1719761485407,0.14768,3401.8,3401.3,0.17019824]
[1719761485704,0.57877136,3401.8,3401.3,0.17019824]
[1719761488060,0.43109136,3401.8,3401.3,0.17019824]
[1719761488482,0.43109136,3402.1,3401.4,2.3176]
[1719761488702,0.43091868,3402.1,3401.4,2.3176]
[1719761488850,0.43091868,3402.1,3401.4,2.48778964]
[1719761492020,0.43089323,3402.1,3401.4,2.48778964]
[1719761492180,0.849,3402.0,3401.4,2.48778964]
[1719761492522,0.43095165,3401.9,3401.4,2.48778964]
[1719761494903,0.43098114,3401.9,3401.4,2.48778964]
[1719761495096,0.43101699,3401.9,3401.4,2.48778964]
[1719761495616,1.26260055,3401.9,3401.4,2.48778964]
[1719761495800,0.43101699,3401.8,3401.4,2.48778964]
[1719761496131,0.43101699,3401.8,3401.4,2.3176]
[1719761498184,0.83158356,3401.9,3401.4,2.3176]
[1719761498383,0.43109908,3401.8,3401.4,2.3176]
[1719761498621,0.43109908,3401.8,3401.5,0.17018453]
[1719761498807,0.43109908,3401.8,3401.4,2.3176]
[1719761499130,0.43109908,3401.8,3401.0,2.4777]
[1719761499335,0.43109908,3401.8,3401.5,0.17018453]
[1719761499479,0.43109908,3401.8,3401.0,2.4777]
[1719761499684,0.43109908,3401.8,3401.6,0.17018293]
[1719761500021,0.43109908,3401.8,3401.0,2.4777]
[1719761500240,0.43109908,3401.8,3401.7,0.17016206]
[1719761500395,0.64226734,3401.8,3401.0,2.4777]
[1719761500725,0.43109908,3401.7,3401.1,0.17017168]
[1719761501025,0.849,3402.0,3401.1,0.17017168]
[1719761501026,0.43109908,3401.9,3401.1,0.17017168]
[1719761501730,2.90561513,3401.9,3401.1,0.17017168]
[1719761501932,3.80657664,3401.8,3401.1,0.17017168]
[1719761502104,0.43111589,3401.7,3401.1,0.17017168]
[1719761504542,0.43111262,3401.7,3401.1,0.17017168]
[1719761504751,3.0,3401.8,3401.1,0.17017168]
[1719761504909,0.43111245,3401.7,3401.1,0.17017168]
[1719761505248,3.43111245,3401.8,3401.1,0.17017168]
[1719761505454,3.43111245,3401.7,3401.1,0.17017168]
[1719761505663,0.43111245,3401.6,3401.1,0.17017168]
[1719761505866,3.43111245,3401.8,3401.1,0.17017168]
[1719761506161,0.43111245,3401.7,3401.2,0.17017008]
[1719761506363,0.43111245,3401.7,3401.0,2.4777]
[1719761506520,0.43111245,3401.7,3401.3,0.17016847]
[1719761506721,0.43111245,3401.7,3401.4,3.2292]
[1719761506959,0.43111245,3401.7,3401.4,3.39936687]
[1719761507256,1.6069379,3401.9,3401.4,3.39936687]
[1719761507616,0.43111245,3401.8,3401.4,3.39936687]
[1719761507816,0.43111245,3402.0,3401.4,2.39444687]
[1719761508117,0.4308184,3402.1,3401.4,2.22428]
[1719761509831,0.4308184,3402.1,3401.4,0.849]
[1719761510885,0.4308184,3402.1,3401.5,2.2926]
[1719761511226,3.849,3402.2,3401.5,2.2926]
[1719761511405,0.43084427,3402.1,3401.5,2.2926]
[1719761511795,0.4308227,3402.1,3401.5,2.2926]
[1719761512012,0.43082262,3402.1,3401.5,2.2926]
[1719761514312,0.430872,3402.1,3401.6,0.849]
[1719761514516,0.430872,3402.1,3401.8,0.849]
[1719761514825,0.430872,3402.1,3401.9,2.2926]
[1719761515017,0.430872,3402.1,3401.9,2.45707729]
[1719761517610,0.4306592,3402.1,3401.9,2.45707729]
[1719761520029,0.4306592,3402.1,3401.9,0.16447729]
[1719761520204,0.4306592,3402.1,3401.7,2.2926]
[1719761520404,0.4306592,3402.1,3402.0,0.16440042]
[1719761520593,3.0,3402.2,3401.7,2.2926]
[1719761520795,0.43071726,3402.1,3401.7,2.2926]
[1719761521024,3.0,3402.2,3401.8,0.16440362]
[1719761521226,1.27967996,3402.1,3401.8,0.16440362]
[1719761521488,0.43067996,3402.0,3401.7,2.2926]
[1719761521695,0.43067996,3402.1,3401.8,0.16440362]
[1719761522732,0.43067996,3402.1,3401.7,2.2926]
[1719761523104,0.43070609,3402.1,3401.7,2.2926]
[1719761525933,1.27970609,3402.1,3401.3,2.3741]
[1719761526135,0.43070609,3402.0,3401.3,2.3741]
[1719761526446,0.43086781,3402.0,3401.4,0.16441004]
[1719761526598,0.43086781,3402.1,3401.4,0.16441004]
[1719761526798,1.27986781,3402.1,3401.4,0.16441004]
[1719761526996,0.43086781,3402.0,3401.4,0.16441004]
[1719761527338,0.43086781,3402.0,3401.3,2.3741]
[1719761529613,0.43089533,3402.0,3401.3,2.3741]
[1719761531567,0.43089533,3402.0,3401.4,0.05879617]
[1719761531868,4.87282917,3402.2,3401.8,2.4814]
[1719761531869,0.43089533,3402.1,3401.8,2.4814]
[1719761532213,0.43089533,3402.1,3401.9,0.16440202]
[1719761532648,0.43089533,3402.1,3401.8,2.4814]
[1719761532866,0.43089533,3402.1,3402.0,0.16440042]
[1719761532867,0.43062359,3402.1,3402.0,0.16440042]
[1719761533056,0.43062359,3402.1,3401.9,0.16440202]
[1719761533213,2.99869109,3402.2,3402.0,0.16440042]
[1719761533418,0.43062345,3402.1,3402.0,0.16440042]
[1719761533674,0.43062345,3402.1,3401.8,2.4814]
[1719761533846,0.43062345,3402.1,3402.0,0.16440042]
[1719761534046,0.43062345,3402.1,3401.9,0.16440202]
[1719761534222,0.43062345,3402.1,3402.0,0.16440042]
[1719761534569,0.43062345,3402.1,3401.8,2.4814]
[1719761534748,0.43062345,3402.1,3402.0,0.16440042]
[1719761534932,0.43062345,3402.1,3401.8,2.4814]
[1719761535129,0.43062345,3402.1,3402.0,0.16441618]
[1719761535320,0.43062345,3402.1,3401.8,2.4814]
[1719761535521,0.43062345,3402.1,3402.0,0.16441618]
[1719761535718,0.43061934,3402.1,3401.8,2.4814]
[1719761536040,0.43061997,3402.1,3402.0,0.16441618]
[1719761536530,0.43061997,3402.1,3401.8,2.4814]
[1719761536738,7.33,3402.3,3402.0,0.16441618]
[1719761536739,0.43061997,3402.2,3402.0,0.16441618]
[1719761536942,0.43061997,3402.2,3401.8,2.4814]
[1719761537524,0.43061997,3402.5,3401.8,2.4814]
[1719761539133,10.33,3402.6,3401.8,2.4814]
[1719761539464,0.43060696,3402.5,3401.8,2.4814]
[1719761542477,0.43062324,3402.5,3401.8,2.4814]
[1719761542849,0.43062928,3402.5,3401.8,2.4814]
[1719761543650,1.27962928,3402.5,3401.8,2.4814]
[1719761543850,0.43062928,3402.4,3401.8,2.4814]
[1719761545472,11.179,3402.6,3401.8,2.4814]
[1719761545650,0.4306038,3402.5,3401.8,2.4814]
[1719761548785,0.43060698,3402.5,3401.8,2.4814]
[1719761549642,0.43060698,3402.5,3402.2,0.849]
[1719761550036,0.43060698,3402.5,3402.3,0.16433612]
[1719761550468,10.33,3402.6,3402.3,2.4566]
[1719761550775,3.0,3402.6,3402.4,0.16433451]
[1719761550965,3.26742375,3403.0,3402.4,0.16433451]
[1719761551172,1.18994214,3402.9,3402.3,2.4566]
[1719761551480,0.43019976,3402.8,3402.3,2.4566]
[1719761552097,0.43018987,3402.8,3402.3,2.4566]
[1719761552395,0.75974238,3402.9,3402.3,2.4566]
[1719761552691,0.43018367,3402.8,3402.3,2.4566]
[1719761555152,0.75974238,3402.9,3402.3,2.4566]
[1719761555353,0.43026469,3402.8,3402.3,2.4566]
[1719761555765,0.43026469,3402.9,3402.3,2.4566]
[1719761555960,0.43026469,3402.9,3402.4,0.849]
[1719761556394,0.43026469,3402.9,3402.3,2.4566]
[1719761557375,0.43026469,3402.9,3402.3,3.3056]
[1719761557770,0.43026469,3402.9,3402.4,0.16425751]
[1719761558279,3.0,3403.0,3402.4,0.16425751]
[1719761558483,0.43012021,3402.9,3402.4,0.16425751]
[1719761559362,3.0,3403.0,3402.4,0.16425751]
[1719761562873,0.43011841,3402.9,3402.4,0.16425751]
[1719761563403,0.43011841,3402.9,3402.5,0.16425591]
[1719761563699,0.43011841,3402.9,3402.3,2.4566]
[1719761563858,0.43011841,3402.9,3402.6,0.16425431]
[1719761564066,0.43011841,3402.9,3402.3,2.4566]
[1719761564258,0.38011841,3402.9,3402.7,0.1642527]
[1719761564597,3.849,3403.0,3402.3,2.4566]
[1719761564804,3.849,3403.0,3402.8,0.1642511]
[1719761564992,3.849,3403.0,3402.3,2.4566]
[1719761565291,3.849,3403.0,3402.3,2.78716]
[1719761565502,3.849,3403.0,3402.4,0.16425751]
[1719761566289,3.0,3403.0,3402.4,0.16425751]
[1719761566484,3.849,3403.0,3402.4,0.16425751]
[1719761567569,3.849,3403.0,3402.3,2.4566]
[1719761567974,3.849,3403.0,3402.4,0.16421901]
[1719761569971,2.4079,3402.9,3402.4,0.16421901]
[1719761570180,2.4079,3402.9,3402.1,2.2655]
[1719761570478,0.849,3402.8,3402.1,2.2655]
[1719761570809,0.849,3402.8,3402.2,0.16411724]
[1719761570810,3.849,3402.8,3402.2,0.16411724]
[1719761571010,3.849,3402.8,3401.9,2.2655]
[1719761571224,3.849,3402.8,3402.3,0.16411564]
[1719761571363,3.849,3402.8,3401.9,2.2655]
[1719761571566,0.849,3402.6,3402.4,0.16411404]
[1719761571782,3.849,3402.8,3401.9,2.2655]
[1719761572075,3.849,3402.8,3401.9,2.57695]
[1719761572282,3.849,3402.8,3402.0,0.16412045]
[1719761574803,0.849,3402.6,3402.0,0.16412045]
[1719761575089,3.0,3402.6,3402.0,0.16412045]
[1719761576790,3.1723,3402.7,3402.0,0.16412045]
[1719761577117,3.0,3402.6,3402.0,0.16412045]
[1719761579310,0.40885398,3402.5,3402.0,0.16412045]
[1719761580844,0.40885969,3402.5,3402.0,0.16412045]
[1719761581046,3.0,3402.6,3402.0,0.16412045]
[1719761581346,0.40885433,3402.5,3402.0,0.16412045]
[1719761583154,3.0,3402.6,3402.0,0.16412045]
[1719761583336,0.40884855,3402.5,3402.0,0.16412045]
[1719761583706,0.40884868,3402.5,3402.0,0.16412045]
[1719761586326,3.0,3402.6,3402.0,0.16412045]
[1719761586637,0.40877452,3402.5,3402.0,0.16412045]
[1719761586842,3.40877452,3402.6,3402.0,0.16412045]
[1719761587027,0.40877452,3402.5,3402.0,0.16412045]
[1719761587229,0.40877452,3402.6,3402.0,0.16412045]
[1719761587534,3.40877452,3402.6,3402.0,0.16412045]
[1719761587768,0.40877452,3402.5,3402.0,0.16412045]
[1719761589745,0.40876887,3402.5,3402.0,0.16412045]
[1719761592997,0.4087863,3402.5,3402.0,0.16412045]
[1719761593278,0.4087863,3402.5,3402.0,0.13612045]
[1719761593279,0.55478652,3402.5,3402.0,0.13612045]
[1719761594587,0.55478652,3402.5,3402.1,2.4482]
[1719761595058,0.146,3402.5,3402.2,0.1632434]
[1719761596289,0.55461392,3402.5,3402.2,0.1632434]
[1719761596592,0.40866475,3402.4,3402.2,0.1632434]
[1719761596803,0.40866475,3402.4,3402.1,2.5069829]
[1719761596804,0.146,3402.5,3402.1,2.5069829]
[1719761596999,0.146,3402.5,3402.1,2.4482]
[1719761597499,0.146,3402.5,3402.2,0.16321673]
[1719761597689,0.146,3402.5,3402.1,2.4482]
[1719761597873,0.146,3402.5,3402.3,0.16319764]
[1719761598194,0.146,3402.5,3402.4,0.16319603]
[1719761598397,2.5522,3402.5,3402.4,0.16319603]
[1719761598570,2.96086475,3402.5,3401.7,3.2972]
[1719761598771,0.40866475,3402.4,3401.8,0.32972]
[1719761598987,0.40866475,3402.4,3401.8,0.49292565]
[1719761599391,0.40890102,3402.4,3401.8,0.49292565]
[1719761600690,0.55490102,3402.5,3401.8,0.49292565]
[1719761601200,0.55490102,3402.5,3401.8,0.32972]
[1719761602358,0.146,3402.5,3401.8,0.32972]
[1719761602661,0.55483487,3402.5,3401.8,0.32972]
[1719761602858,0.40883525,3402.4,3401.8,0.32972]
[1719761603203,0.55483525,3402.5,3401.8,0.32972]
[1719761605338,0.40881996,3402.4,3401.8,0.32972]
[1719761605494,0.146,3402.5,3401.8,0.32972]
[1719761605694,0.55484581,3402.5,3401.7,3.2972]
[1719761608836,0.146,3402.5,3401.7,3.2972]
[1719761609144,0.55482345,3402.5,3401.7,3.2972]
[1719761612093,0.4089928,3402.4,3401.7,3.2972]
[1719761612293,0.146,3402.5,3401.7,3.2972]
[1719761612294,0.5549928,3402.5,3401.7,3.2972]
[1719761612542,0.40898186,3402.4,3401.7,3.2972]
[1719761612753,0.55498186,3402.5,3401.7,3.2972]
[1719761613098,0.849,3402.4,3401.7,2.4482]
[1719761613359,0.849,3401.9,3400.9,2.2773]
[1719761613659,0.849,3401.6,3401.0,0.15780261]
[1719761613953,0.40898186,3401.5,3401.0,0.15780261]
[1719761614242,0.40898186,3401.5,3400.9,2.2773]
[1719761614929,0.849,3401.6,3400.9,2.2773]
[1719761615132,0.40945914,3401.5,3401.0,0.1523674]
[1719761615300,0.40945914,3401.7,3400.9,2.2773]
[1719761616955,0.40945914,3401.7,3401.0,0.849]
[1719761617164,3.40945914,3402.0,3401.4,0.849]
[1719761617443,0.40916637,3401.9,3401.5,2.2773]
[1719761617661,3.0,3402.0,3401.5,2.2773]
[1719761620439,3.0,3402.0,3401.6,0.849]
[1719761621069,7.33,3402.4,3401.8,0.849]
[1719761621070,3.0,3402.3,3401.8,0.849]
[1719761621369,3.0,3402.3,3401.9,2.2773]
[1719761621663,0.40897041,3402.2,3401.9,2.2773]
[1719761621860,3.0,3402.3,3401.9,2.2773]
[1719761622167,3.0,3402.3,3402.1,0.849]
[1719761622461,7.33,3402.4,3402.1,0.849]
[1719761623226,7.33,3402.4,3401.9,3.1263]
[1719761623727,0.146,3402.5,3401.9,3.1263]
[1719761624539,0.146,3402.5,3401.9,2.2773]
[1719761624748,0.146,3402.5,3401.9,3.1263]
[1719761629388,0.146,3402.5,3401.9,3.43893]
[1719761634964,0.146,3402.5,3401.9,2.58993]
[1719761635171,0.146,3402.5,3402.0,0.849]
[1719761642307,0.146,3402.5,3402.0,0.90778336]
[1719761645208,0.146,3402.5,3402.1,2.4971]
[1719761645406,0.146,3402.5,3402.1,2.83758834]
[1719761649709,0.118,3402.5,3402.1,2.83758834]
[1719761650176,3.0,3402.7,3402.1,2.83758834]
[1719761657243,3.0,3402.7,3402.1,2.4971]
[1719761657554,0.40867315,3402.6,3402.1,2.4971]
[1719761659224,3.0,3402.7,3402.1,2.4971]
[1719761659412,0.40879657,3402.6,3402.1,2.4971]
[1719761662697,0.40882278,3402.6,3402.1,2.4971]
[1719761662851,3.0,3402.7,3402.1,2.4971]
[1719761663056,0.40882305,3402.6,3402.1,2.4971]
[1719761665482,3.0,3402.7,3402.1,2.4971]
[1719761665681,0.40878432,3402.6,3402.1,2.4971]
[1719761668865,0.40884143,3402.6,3402.1,2.4971]
[1719761672305,0.40878933,3402.6,3402.1,2.4971]
[1719761674571,0.40878933,3402.6,3402.1,2.83171]
[1719761674887,0.40863232,3402.6,3402.1,2.83171]
[1719761678381,3.0,3402.7,3402.1,3.68071]
[1719761678578,0.40863131,3402.6,3402.1,3.68071]
[1719761681797,0.40862829,3402.6,3402.1,3.68071]
[1719761682324,0.40863185,3402.6,3402.1,3.68071]
[1719761684589,0.40862101,3402.6,3402.1,3.68071]
[1719761684985,0.40862092,3402.6,3402.1,3.68071]
[1719761687103,0.40862092,3402.6,3402.2,0.15229615]
[1719761687304,0.40862092,3402.8,3402.2,0.15229615]
[1719761687549,0.67601831,3402.9,3402.2,0.15229615]
[1719761688246,0.40861087,3402.8,3402.2,0.15229615]
[1719761688410,0.26739739,3402.9,3402.2,0.15229615]
[1719761688411,0.40861087,3402.9,3402.2,0.15229615]
[1719761691427,0.40861194,3402.9,3402.2,0.15229615]
[1719761691744,0.849,3403.0,3402.2,0.15229615]
[1719761691941,0.40861062,3402.9,3402.2,0.15229615]
[1719761692504,0.40861064,3402.9,3402.2,0.15229615]
[1719761694223,1.46632,3403.0,3402.2,0.15229615]
[1719761694544,0.40870018,3402.9,3402.2,0.15229615]
[1719761694879,0.40869651,3402.9,3402.2,0.15229615]
[1719761695949,2.355,3402.8,3402.2,0.15229615]
[1719761696127,0.40869651,3402.7,3402.2,0.15229615]
[1719761696527,3.40869651,3402.7,3402.2,0.15229615]
[1719761696712,0.40869651,3402.6,3402.2,0.15229615]
[1719761698038,0.40878135,3402.6,3402.2,0.15229615]
[1719761700847,0.40886046,3402.6,3402.2,0.15229615]
[1719761701369,0.40885218,3402.6,3402.2,0.15229615]
[1719761703524,0.40883354,3402.6,3402.2,0.15229615]
[1719761703712,0.40883267,3402.6,3402.2,0.15229615]
[1719761705324,0.40883267,3402.6,3402.1,2.4971]
[1719761706254,0.40883267,3402.6,3402.1,2.4691]
[1719761706627,0.40883267,3402.6,3402.2,0.15228922]
[1719761706829,0.52881867,3402.6,3402.2,0.15228922]
[1719761707327,1.38809734,3402.6,3402.3,0.15228415]
[1719761707529,0.40881867,3402.5,3402.1,2.4691]
[1719761709974,0.849,3402.3,3401.5,2.2545]
[1719761710155,0.849,3402.1,3401.5,2.2545]
[1719761710334,0.40882593,3402.0,3401.5,2.2545]
[1719761712171,0.849,3402.2,3401.5,2.2545]
[1719761712343,0.40882593,3402.1,3401.5,2.2545]
[1719761713192,0.40909149,3402.1,3401.5,2.2545]
[1719761713480,0.849,3402.2,3401.5,2.2545]
[1719761713783,0.4090911,3402.1,3401.5,2.2545]
[1719761715266,0.4090911,3402.1,3401.5,3.1035]
[1719761715460,0.4090911,3402.3,3401.5,3.41385]
[1719761715675,0.4090911,3402.3,3401.5,3.1035]
[1719761715879,0.40906514,3402.3,3401.5,3.1035]
[1719761716477,0.40906514,3402.3,3401.5,2.2545]
[1719761716672,0.40906514,3402.3,3401.5,3.1035]
[1719761718822,0.40906514,3402.3,3401.5,2.2545]
[1719761719515,11.179,3402.4,3401.5,2.2545]
[1719761719678,0.40907131,3402.3,3401.5,2.2545]
[1719761720998,2.4672,3402.2,3401.5,2.2545]
[1719761721317,0.40907131,3402.1,3401.5,2.2545]
[1719761721516,0.40907131,3402.1,3401.3,2.497]
[1719761722821,0.40929176,3402.1,3401.3,2.497]
[1719761723185,3.3162,3402.2,3401.3,2.497]
[1719761723386,0.4092871,3402.1,3401.3,2.497]
[1719761726129,0.40920587,3402.1,3401.3,2.497]
[1719761729181,3.3162,3402.2,3401.3,2.497]
[1719761729422,0.40917979,3402.1,3401.3,2.497]
[1719761732485,0.40917876,3402.1,3401.3,2.497]
[1719761732826,0.40917038,3402.1,3401.3,2.497]
[1719761735640,3.3162,3402.2,3401.3,2.497]
[1719761735932,0.40917329,3402.1,3401.3,2.497]
[1719761738042,3.1274,3401.9,3401.0,2.4343]
[1719761738280,0.40917329,3401.8,3401.0,2.4343]
[1719761738456,0.40917329,3401.8,3401.1,0.2226836]
[1719761738761,3.1274,3401.9,3401.1,0.2226836]
[1719761738973,0.72206534,3401.8,3401.1,0.2226836]
[1719761742298,3.1274,3401.9,3401.1,0.2226836]
[1719761742661,0.40928506,3401.8,3401.1,0.2226836]
[1719761745376,0.40928967,3401.8,3401.1,0.2226836]
[1719761745586,0.40929123,3401.8,3401.1,0.2226836]
[1719761748574,3.1274,3401.9,3401.1,0.2226836]
[1719761748886,0.40927703,3401.8,3401.1,0.2226836]
[1719761750272,0.40927703,3401.8,3401.4,0.849]
[1719761750506,0.40927703,3402.1,3401.5,2.67030533]
[1719761750672,0.40927703,3402.1,3401.5,2.4476]
[1719761751672,0.849,3402.2,3401.5,2.4476]
[1719761751881,0.40915486,3402.1,3401.5,2.4476]
[1719761752085,0.849,3402.2,3401.5,2.4476]
[1719761752414,0.40915542,3402.1,3401.5,2.4476]
[1719761752826,0.40911005,3402.1,3401.5,2.4476]
[1719761754589,0.40912143,3402.1,3401.5,2.4476]
[1719761755031,0.40912237,3402.1,3401.5,2.4476]
[1719761755806,0.40912237,3402.2,3401.5,2.4476]
[1719761758252,4.59286,3402.3,3401.5,2.4476]
[1719761758253,3.849,3402.3,3401.5,2.4476]
[1719761758557,0.40905777,3402.2,3401.5,2.4476]
[1719761761104,0.40902362,3402.2,3401.5,2.4476]
[1719761763835,3.2674333,3402.3,3401.5,2.4476]
[1719761764060,0.40901369,3402.2,3401.5,2.4476]
[1719761766491,0.40901369,3402.2,3401.5,2.50639241]
[1719761766656,0.40901369,3402.2,3401.8,0.849]
[1719761766977,0.40901369,3402.2,3401.9,2.4114]
[1719761767200,0.40875461,3402.2,3401.9,2.4114]
[1719761767573,3.0,3402.3,3402.0,0.849]
[1719761767893,3.0,3402.3,3401.9,2.4114]
[1719761768054,3.0,3402.3,3402.1,2.4114]
[1719761772309,7.302,3402.4,3402.1,2.4114]
[1719761779108,7.302,3402.4,3402.3,0.849]
[1719761779414,7.302,3402.4,3402.3,3.1409]
[1719761780101,7.302,3402.4,3402.3,3.45499]
[1719761781612,7.302,3402.4,3402.3,2.60599]
[1719761781808,7.302,3402.4,3402.3,3.45499]
[1719761789623,7.302,3402.4,3402.3,3.67749774]
[1719761790994,9.6668,3403.0,3402.3,3.67749774]
[1719761791213,3.0,3402.9,3402.3,3.45499]
[1719761791396,3.0,3402.9,3402.3,3.1409]
[1719761796397,3.0,3402.9,3402.5,0.849]
[1719761797495,5.3354,3403.2,3402.5,0.849]
[1719761798128,5.3354,3403.2,3402.6,0.22245167]
[1719761798501,5.3354,3403.2,3402.5,0.849]
[1719761798701,5.3354,3403.2,3402.5,1.16309]
[1719761798904,5.3354,3403.2,3402.6,2.4394]
[1719761799211,5.3354,3403.2,3402.7,0.22244801]
[1719761801425,5.3354,3403.2,3402.3,3.2884]
[1719761801630,5.3354,3403.2,3402.8,0.22244434]
[1719761801834,5.3354,3403.2,3402.3,3.2884]
[1719761802045,5.3354,3403.2,3402.9,0.22244068]
[1719761802250,5.3354,3403.2,3402.3,3.2884]
[1719761802737,5.3354,3403.2,3402.4,0.22245901]
[1719761806553,2.4817,3402.8,3402.4,0.22245901]
[1719761806905,2.4817,3402.8,3402.1,2.2757]
[1719761807106,2.4817,3402.8,3402.5,0.22246054]
[1719761807407,2.4817,3402.8,3402.6,0.22245687]
[1719761807742,2.4817,3402.8,3402.1,2.2757]
[1719761807943,2.4817,3402.8,3402.7,0.22245321]
[1719761808445,2.4817,3402.8,3402.1,2.2757]
[1719761808604,2.4817,3402.8,3402.7,0.22245321]
[1719761808804,2.4817,3402.8,3402.1,2.58817]
[1719761809006,2.4817,3402.8,3402.7,0.22245321]
[1719761809243,2.4817,3402.8,3402.1,2.2757]